fUSD/lending_fUSD_20240422
["ID","MTS","AMOUNT","RATE_DAILY","PERIOD"]
[323183281,1713785111870,2666.04,0.00010705,2]
[323183282,1713785112072,2666.04,0.00010708,2]
[323183283,1713785121366,3110.68,0.00010678,2]
[323183285,1713785168661,1000.9202755,0.00011,2]
[323183286,1713785171893,1649.57,0.00010678,2]
[323183287,1713785202650,18195.38,0.00010667,2]
[323183288,1713785210490,23900.0,0.00011005,2]
[323183289,1713785235042,1783.75,0.0001065,2]
[323183291,1713785311293,3331.34,0.0001065,2]
[323183292,1713785318685,668.6,0.00010638,2]
[323183293,1713785333845,1852.42,0.00010638,2]
[323183294,1713785366647,1268.92,0.00010653,2]
[323183295,1713785387036,9849.68,0.00010731,2]
[323183303,1713785432322,-2179.47661995,0.00011205,2]
[323183304,1713785432332,-442.52882237,0.00011206,2]
[323183305,1713785432383,-851.3926592,0.00011206,2]
[323183306,1713785432394,-4322.36508859,0.00011207,2]
[323183307,1713785432403,-1626.0,0.00011212,2]
[323183308,1713785432412,-179.23,0.00011217,2]
[323183309,1713785432421,-179.23,0.00011248,2]
[323183310,1713785432430,-179.23,0.00011278,2]
[323183311,1713785432440,-150.0,0.00011302,2]
[323183312,1713785432449,-150.0,0.00011302,2]
[323183313,1713785432460,-300.0,0.00011302,2]
[323183314,1713785432470,-2412.19871809,0.00011303,2]
[323183315,1713785432479,-499.99,0.00011309,2]
[323183316,1713785432488,-150.99,0.00011309,2]
[323183317,1713785432498,-179.23,0.00011309,2]
[323183318,1713785432507,-179.23,0.00011339,2]
[323183319,1713785432517,-2194.88053644,0.00011339,2]
[323183320,1713785432543,-650.16907353,0.00011339,2]
[323183321,1713785432554,-7154.94039003,0.00011339,2]
[323183322,1713785432563,-179.23,0.00011369,2]
[323183323,1713785432572,-179.23,0.000114,2]
[323183324,1713785432582,-179.23,0.0001143,2]
[323183325,1713785432592,-179.23,0.00011461,2]
[323183326,1713785432601,-179.23,0.00011491,2]
[323183327,1713785432610,-179.23,0.00011522,2]
[323183328,1713785432620,-9705.4123,0.00011547,2]
[323183329,1713785432629,-179.23,0.00011552,2]
[323183330,1713785432638,-179.23,0.00011582,2]
[323183331,1713785432648,-179.23,0.00011613,2]
[323183332,1713785432657,-179.23,0.00011643,2]
[323183333,1713785432666,-179.23,0.00011674,2]
[323183334,1713785432675,-141.54864266,0.0001169,2]
[323183335,1713785432710,-258.45135734,0.0001169,2]
[323183336,1713785432720,-259.94885493,0.000117,2]
[323183363,1713785441432,-2841.58840318,0.000117,2]
[323183364,1713785441441,-164.72,0.00011705,2]
[323183365,1713785441450,-1261.75564,0.0001178,2]
[323183366,1713785441459,-1261.75565,0.0001178,2]
[323183367,1713785441469,-1261.75565,0.0001178,2]
[323183368,1713785441478,-2168.7984254,0.000118,2]
[323183369,1713785441487,-4582.35597345,0.00011887,2]
[323183370,1713785441497,-363.20518945,0.00011898,2]
[323183371,1713785441506,-5545.84899001,0.00011898,2]
[323183372,1713785441515,-313.74231263,0.00011898,2]
[323183373,1713785441525,-37019.90361816,0.00011898,2]
[323183374,1713785441534,-7339.8708047,0.00011898,2]
[323183375,1713785441543,-2354.9788646,0.00011898,2]
[323183376,1713785441552,-1994.39190651,0.00011898,2]
[323183377,1713785441562,-3382.14833468,0.00011898,2]
[323183378,1713785441571,-4330.90690104,0.00011898,2]
[323183379,1713785441580,-9456.34010444,0.00011898,2]
[323183380,1713785441589,-1241.80746662,0.00011898,2]
[323183381,1713785441598,-1351.45342977,0.00011899,2]
[323183382,1713785441608,-18066.86860303,0.00011899,2]
[323183383,1713785441617,-73859.67922864,0.000119,2]
[323183384,1713785441629,-4298.94191913,0.000119,2]
[323183385,1713785441655,-8643.67207993,0.000119,2]
[323183386,1713785441680,-9257.40000601,0.000119,2]
[323183387,1713785441691,-115991.76190796,0.000119,2]
[323183397,1713785443539,-6131.17381221,0.000119,2]
[323183398,1713785443596,-480.82574739,0.000119,2]
[323183422,1713785447170,-474441.90499275,0.000119,2]
[323183423,1713785447181,-4822.34238322,0.000119,2]
[323183424,1713785447192,-2769.13407345,0.000119,2]
[323183425,1713785447204,-1231.01326387,0.000119,2]
[323183426,1713785447280,-67689.64903739,0.000119,2]
[323183427,1713785447352,-823.99999992,0.000119,2]
[323183428,1713785447363,-48258.85048598,0.000119,2]
[323183429,1713785447437,-24550.79552598,0.000119,2]
[323183430,1713785452615,155.79718622,0.00010708,2]
[323183431,1713785463806,260.87285913,0.00010708,2]
[323183432,1713785494566,170.19,8.52e-05,2]
[323183433,1713785645838,1276.63,9.679e-05,2]
[323183434,1713785779560,12588.17,0.00010991,2]
[323183435,1713785782908,465.12,0.00010991,2]
[323183436,1713785793603,20441.16,0.00010991,2]
[323183437,1713785806122,200.0,0.0001097,2]
[323183438,1713785939659,-2179.47661995,0.00011556,2]
[323183439,1713785939686,-1293.92148157,0.00011557,2]
[323183440,1713785939709,-250.0,0.00011562,2]
[323183441,1713785939733,-1429.4,0.00011597,2]
[323183442,1713785939758,-656.88,0.00011654,2]
[323183443,1713785939784,-666.66666,0.0001178,2]
[323183444,1713785939808,-2432.1744,0.00011797,2]
[323183445,1713785939831,-300.0,0.00011885,2]
[323183446,1713785939854,-886.41647616,0.00011886,2]
[323183447,1713785939877,-905.06436232,0.00011886,2]
[323183448,1713785968051,170.19,9.281e-05,2]
[323183449,1713785978402,-1293.92148157,0.00011303,2]
[323183450,1713785978430,-1306.07851843,0.00011885,2]
[323183451,1713786020259,19458.16576639,0.0001,2]
[323183452,1713786042631,502.24651146,0.00011,2]
[323183462,1713786138523,150.0,0.00011041,2]
[323183468,1713786220559,1235.07,9.132e-05,2]
[323183469,1713786259323,8391.78,0.00011029,2]
[323183470,1713786287235,-4150.0,0.00011297,2]
[323183471,1713786337206,1127.706,0.00011198,2]
[323183472,1713786343260,250.0,0.00010878,2]
[323183473,1713786433197,1344.71,0.00010886,2]
[323183476,1713786499405,1001.38605968,0.0001,3]
[323183477,1713786544900,164.66,0.00011022,2]
[323183478,1713786544961,164.66,0.00011104,2]
[323183479,1713786545125,164.66,0.00011186,2]
[323183496,1713786631483,-164.66,0.00011268,2]
[323183497,1713786631492,-4072.33119289,0.00011282,2]
[323183498,1713786631533,-1008.9263289,0.00011282,2]
[323183499,1713786631544,-10130.75971116,0.00011282,2]
[323183500,1713786631575,-4226.63701032,0.00011282,2]
[323183501,1713786631585,-1182.76308968,0.00011283,2]
[323183502,1713786631596,-4802.90882003,0.00011283,2]
[323183503,1713786631632,-7173.091763,0.00011283,2]
[323183504,1713786631643,-4258.00751841,0.00011283,2]
[323183505,1713786631689,-924.20951688,0.00011283,2]
[323183506,1713786631700,-1586.2707048,0.00011283,2]
[323183507,1713786631744,-656.74025002,0.00011283,2]
[323183508,1713786631800,-765.17124768,0.00011283,2]
[323183522,1713786637561,-13903.9933004,0.00011283,2]
[323183523,1713786637570,-4322.36508859,0.00011284,2]
[323183524,1713786637579,-1293.92148157,0.00011285,2]
[323183525,1713786637588,-1626.0,0.00011289,2]
[323183526,1713786637597,-150.0,0.00011302,2]
[323183527,1713786637606,-2412.19871809,0.00011303,2]
[323183528,1713786637615,-164.66,0.0001135,2]
[323183529,1713786637624,-150.0,0.0001137,2]
[323183530,1713786637634,-1235.07,0.00011396,2]
[323183531,1713786637643,-164.66,0.00011432,2]
[323183532,1713786637652,-164.66,0.00011514,2]
[323183533,1713786637662,-501.74,0.00011557,2]
[323183534,1713786637671,-400.0,0.00011561,2]
[323183535,1713786637680,-1958.96,0.00011561,2]
[323183536,1713786637689,-150.99,0.00011561,2]
[323183537,1713786637698,-1000.0,0.00011585,2]
[323183538,1713786637707,-164.66,0.00011596,2]
[323183539,1713786637716,-150.0,0.00011714,2]
[323183540,1713786637726,-300.0,0.00011769,2]
[323183541,1713786637735,-150.0,0.00011773,2]
[323183542,1713786637744,-7127.3631,0.000118,2]
[323183543,1713786637753,-256.0905,0.000118,2]
[323183544,1713786637763,-150.0,0.000118,2]
[323183545,1713786637772,-150.0,0.00011875,2]
[323183546,1713786637781,-662.81885266,0.00011886,2]
[323183547,1713786637790,-150.99,0.00011886,2]
[323183548,1713786637800,-155.17966263,0.00011898,2]
[323183549,1713786637809,-203.89539455,0.00011898,2]
[323183550,1713786637818,-7339.13687091,0.00011898,2]
[323183551,1713786637827,-194.76213668,0.00011898,2]
[323183552,1713786637836,-5475.71,0.00011898,2]
[323183553,1713786637845,-2178.65253255,0.00011898,2]
[323183554,1713786637854,-917.06616326,0.00011898,2]
[323183555,1713786637864,-203.65621439,0.00011898,2]
[323183556,1713786637873,-1864.81793699,0.00011899,2]
[323183557,1713786637882,-323678.12209762,0.000119,2]
[323183560,1713786639648,-380.05281427,0.000119,2]
[323183561,1713786641000,-4608.4,0.000119,2]
[323183583,1713786642570,-1394.92759922,0.000119,2]
[323183588,1713786642758,-543.33974753,0.00011899,2]
[323183590,1713786643104,-688.56235155,0.00011899,2]
[323183593,1713786643158,-11.30985892,0.00011899,2]
[323183594,1713786643167,-104679.32511282,0.000119,2]
[323183595,1713786643177,-1153.27,0.000119,2]
[323183596,1713786643185,-630.87782,0.000119,2]
[323183597,1713786643195,-158.09,0.00011911,2]
[323183598,1713786643205,-158.09,0.00011919,2]
[323183599,1713786643215,-158.09,0.00011926,2]
[323183600,1713786643224,-158.09,0.00011934,2]
[323183601,1713786643234,-499.99,0.00011934,2]
[323183602,1713786643243,-158.09,0.00011941,2]
[323183603,1713786643253,-158.09,0.00011949,2]
[323183604,1713786643263,-158.09,0.00011956,2]
[323183605,1713786643271,-158.09,0.00011964,2]
[323183606,1713786643281,-158.09,0.00011971,2]
[323183607,1713786643292,-2540.35536187,0.00012,2]
[323183608,1713786643301,-1818.92,0.000121,2]
[323183609,1713786643310,-413.05,0.000121,2]
[323183610,1713786643320,-167.22,0.0001215,2]
[323183611,1713786643329,-159.96,0.00012329,2]
[323183612,1713786643338,-521.95,0.00012329,2]
[323183613,1713786643348,-150.0,0.00012329,2]
[323183614,1713786643357,-150.0,0.00012329,2]
[323183615,1713786643366,-443.0,0.00012329,2]
[323183616,1713786643376,-325.4,0.00012329,2]
[323183617,1713786643385,-306.71,0.00012329,2]
[323183618,1713786643395,-150.0,0.00012329,2]
[323183619,1713786643405,-521.95,0.00012329,2]
[323183620,1713786643414,-150.0,0.00012329,2]
[323183621,1713786643423,-150.0,0.00012329,2]
[323183622,1713786643433,-150.0,0.00012329,2]
[323183623,1713786643442,-170.42850797,0.00012329,2]
[323183624,1713786643491,-179.95149203,0.00012329,2]
[323183625,1713786643500,-150.0,0.00012329,2]
[323183626,1713786643511,-150.0,0.00012329,2]
[323183627,1713786643520,-150.0,0.00012329,2]
[323183628,1713786643529,-150.0,0.00012329,2]
[323183629,1713786643538,-300.0,0.00012329,2]
[323183630,1713786643548,-164.24,0.00012381,2]
[323183631,1713786643557,-521.95,0.000124,2]
[323183632,1713786643567,-150.0,0.000124,2]
[323183633,1713786643577,-150.0,0.000124,2]
[323183634,1713786643586,-150.0,0.000124,2]
[323183635,1713786643595,-521.95,0.000124,2]
[323183636,1713786643605,-150.0,0.000124,2]
[323183637,1713786643614,-518.78,0.000124,2]
[323183638,1713786643623,-150.0,0.000124,2]
[323183639,1713786643633,-150.0,0.000126,2]
[323183640,1713786643642,-521.95,0.000126,2]
[323183641,1713786643652,-150.0,0.000126,2]
[323183642,1713786643661,-350.38,0.000126,2]
[323183643,1713786643671,-150.0,0.000126,2]
[323183644,1713786643680,-2017.56095378,0.000129,2]
[323183645,1713786643690,-2017.56095378,0.000129,2]
[323183646,1713786643699,-2017.56095378,0.000129,2]
[323183647,1713786643708,-630.87782,0.0001297,2]
[323183648,1713786643717,-275.6053496,0.0001299,2]
[323183649,1713786643727,-637.6400615,0.00013,2]
[323183650,1713786643736,-93234.08487737,0.00013,2]
[323183651,1713786643745,-750.0,0.00013,2]
[323183652,1713786643754,-2017.56095378,0.00013,2]
[323183653,1713786643768,-400.0,0.00013006,2]
[323183654,1713786643777,-1000.0,0.00013033,2]
[323183655,1713786643787,-1000.0,0.00013084,2]
[323183656,1713786643796,-500.0,0.00013084,2]
[323183657,1713786643808,-416.0,0.00013151,2]
[323183658,1713786643816,-500.0,0.00013425,2]
[323183659,1713786643826,-1000.0,0.00013472,2]
[323183660,1713786643835,-500.0,0.00013472,2]
[323183661,1713786643844,-10000.0,0.00013479,2]
[323183662,1713786643852,-124253.64070789,0.000135,2]
[323183663,1713786643862,-91580.66355144,0.000135,2]
[323183664,1713786643871,-150.0,0.00013534,2]
[323183665,1713786643881,-172.1792927,0.00013597,2]
[323183666,1713786643890,-179.80627778,0.00013598,2]
[323183667,1713786643900,-417.06890028,0.00013598,2]
[323183668,1713786643910,-7732.38796634,0.00013598,2]
[323183669,1713786643919,-1000.0,0.00013598,2]
[323183670,1713786643929,-10000.0,0.00013598,2]
[323183671,1713786643938,-2298.56,0.000136,6]
[323183672,1713786643948,-17882.75,0.000136,6]
[323183673,1713786643957,-1235.07,0.0001366,2]
[323183674,1713786643967,-500.0,0.00013668,2]
[323183675,1713786643976,-500.0,0.00013677,2]
[323183676,1713786643986,-500.0,0.00013686,2]
[323183677,1713786643995,-500.0,0.00013694,2]
[323183678,1713786644005,-297.36082986,0.00013696,2]
[323183679,1713786644017,-794031.04440077,0.00013697,2]
[323183680,1713786644050,-886.72936337,0.00013697,2]
[323183683,1713786646205,-1268.27378266,0.00013479,2]
[323183684,1713786646237,-787.30992977,0.00013479,2]
[323183685,1713786680954,10296.29079437,0.00011186,2]
[323183686,1713786681041,2500.0,0.00022,30]
[323183687,1713786681992,9099.94321408,9e-05,2]
[323183688,1713786685541,19675.04066341,0.00011186,2]
[323183689,1713786691646,1092.12,0.00010809,2]
[323183690,1713786698921,6936.11645257,0.00011,2]
[323183691,1713786701505,30286.61147279,0.000224,30]
[323183692,1713786707362,19675.04066341,9e-05,2]
[323183693,1713786717674,9664.89374906,6.94e-05,2]
[323183694,1713786729437,19643.42534507,9e-05,2]
[323183695,1713786812994,3500.88038907,0.000224,30]
[323183701,1713786992636,5275.9167742,0.0001,2]
[323183703,1713787166470,1085.0,0.00010244,2]
[323183704,1713787380602,25000.0,0.00012,3]
[323183705,1713787404504,600.0,0.00013,4]
[323183712,1713787636427,500.0,0.00013,4]
[323183713,1713787640977,1030.75,9.619e-05,2]
[323183736,1713787831706,-404.71022701,0.00011481,2]
[323183737,1713787831716,-48.65124334,0.00011482,2]
[323183738,1713787831728,-187.86703302,0.00011482,2]
[323183739,1713787831737,-4322.36508859,0.00011482,2]
[323183740,1713787831747,-968.12,0.00011483,2]
[323183741,1713787831756,-136.98574134,0.00011491,2]
[323183742,1713787831784,-13.01425866,0.00011491,2]
[323183743,1713787831793,-4176.36574134,0.00011493,2]
[323183744,1713787831805,-3159.7569,0.00011493,2]
[323183745,1713787832037,-1083.76735866,0.00011493,2]
[323183746,1713787832050,-191.98496626,0.0001153,2]
[323183747,1713787832062,-10537.33160144,0.0001153,2]
[323183748,1713787832076,-13170.6834323,0.0001153,2]
[323183749,1713787832087,-600.0,0.00011627,2]
[323183750,1713787832098,-150.0,0.00011666,2]
[323183751,1713787832110,-187.63,0.00011666,2]
[323183752,1713787832121,-154.24,0.00011695,2]
[323183753,1713787832133,-160.0,0.00011783,2]
[323183754,1713787832143,-5665.96,0.00011796,2]
[323183756,1713787832155,-499.99,0.00011796,2]
[323183757,1713787832164,-154.24,0.00011848,2]
[323183758,1713787832174,-1030.75,0.00011883,2]
[323183759,1713787832184,-2339.68371788,0.000119,2]
[323183760,1713787832217,-3302.59056535,0.000119,2]
[323183761,1713787832231,-22445.88326152,0.000119,2]
[323183762,1713787832240,-155.21,0.000119,2]
[323183763,1713787832250,-2194.89,0.000119,2]
[323183764,1713787832262,-250.0,0.00011937,2]
[323183765,1713787832273,-1911.72,0.00011948,2]
[323183766,1713787832284,-154.24,0.00012,2]
[323183767,1713787832294,-154.24,0.00012152,2]
[323183768,1713787832304,-154.24,0.00012305,2]
[323183769,1713787832314,-400.0,0.000124,2]
[323183770,1713787832324,-150.99,0.00012525,2]
[323183771,1713787832336,-210.0,0.0001264,2]
[323183772,1713787832347,-164.24,0.00012739,2]
[323183773,1713787832359,-434.7195,0.000128,2]
[323183774,1713787832369,-1000.0,0.000128,2]
[323183775,1713787832378,-2500.0,0.000128,2]
[323183776,1713787832389,-1000.0,0.000129,2]
[323183777,1713787832399,-35244.4059,0.000129,2]
[323183778,1713787832411,-360.1009,0.000129,2]
[323183779,1713787832421,-153.1504,0.000129,2]
[323183780,1713787832431,-503.0021,0.000129,2]
[323183781,1713787832441,-685.467,0.000129,2]
[323183782,1713787832450,-181641.23265376,0.000129,2]
[323183783,1713787832463,-63358.76734624,0.000129,2]
[323183784,1713787832474,-1484.6281,0.000129,2]
[323183785,1713787832486,-3492.5741,0.000129,2]
[323183786,1713787832496,-1008.78047693,0.000129,2]
[323183787,1713787832506,-1008.78047689,0.00012957,2]
[323183788,1713787832517,-128356.92225275,0.00013,2]
[323183789,1713787832537,-761.75219466,0.00013,2]
[323183790,1713787832550,-449.45831463,0.00013,2]
[323183795,1713787838041,984.89,0.00011666,3]
[323183802,1713787839879,-836.42667354,0.00011381,2]
[323183803,1713787839891,-311.83223388,0.00011381,2]
[323183804,1713787840021,-77.92167725,0.00011381,2]
[323183805,1713787840031,-84861.57215287,0.00013,2]
[323183806,1713787840040,-750.0,0.00013,2]
[323183807,1713787840050,-1000.0,0.00013,2]
[323183808,1713787840060,-853.09365028,0.0001301,2]
[323183809,1713787840069,-928.64,0.00013041,2]
[323183810,1713787840078,-600.0,0.00013081,2]
[323183811,1713787840088,-1100.0,0.000131,4]
[323183812,1713787840097,-1008.78047689,0.00013114,2]
[323183813,1713787840106,-521.95,0.00013151,2]
[323183814,1713787840115,-150.0,0.00013151,2]
[323183815,1713787840124,-162.76,0.00013151,2]
[323183816,1713787840134,-327.94,0.00013151,2]
[323183817,1713787840143,-350.38,0.00013151,2]
[323183818,1713787840152,-150.0,0.00013151,2]
[323183819,1713787840161,-521.95,0.00013151,2]
[323183820,1713787840171,-162.76,0.00013151,2]
[323183821,1713787840180,-350.38,0.00013151,2]
[323183822,1713787840190,-150.0,0.00013151,2]
[323183823,1713787840199,-521.95,0.00013151,2]
[323183824,1713787840209,-161.32,0.00013151,2]
[323183825,1713787840219,-350.38,0.00013151,2]
[323183826,1713787840228,-521.39,0.00013151,2]
[323183827,1713787840237,-350.38,0.00013151,2]
[323183829,1713787840246,-350.38,0.00013151,2]
[323183831,1713787840255,-835.45,0.00013178,2]
[323183833,1713787840264,-404.22,0.00013178,2]
[323183835,1713787840274,-521.64,0.00013178,2]
[323183837,1713787840283,-150.0,0.00013178,2]
[323183839,1713787840292,-162.7,0.00013178,2]
[323183841,1713787840301,-303.6,0.00013178,2]
[323183843,1713787840310,-350.29,0.00013178,2]
[323183844,1713787840320,-419.06,0.00013178,2]
[323183845,1713787840329,-150.0,0.00013178,2]
[323183846,1713787840340,-419.06,0.00013178,2]
[323183847,1713787840350,-150.0,0.00013178,2]
[323183849,1713787840359,-419.06,0.00013178,2]
[323183851,1713787840369,-419.06,0.00013178,2]
[323183853,1713787840377,-419.06,0.00013178,2]
[323183854,1713787840387,-419.06,0.00013178,2]
[323183855,1713787840395,-419.06,0.00013178,2]
[323183856,1713787840405,-419.06,0.00013178,2]
[323183857,1713787840414,-7775.42153226,0.00013187,2]
[323183858,1713787840424,-1700.0,0.000132,4]
[323183859,1713787840433,-1323.546,0.00013234,2]
[323183860,1713787840442,-1055.0,0.00013234,2]
[323183861,1713787840453,-160.0,0.00013256,2]
[323183862,1713787840462,-1008.78047689,0.00013271,2]
[323183863,1713787840471,-2300.0,0.000133,4]
[323183864,1713787840480,-5204.81529063,0.00013325,6]
[323183865,1713787840492,-23912.35809705,0.00013325,6]
[323183866,1713787840536,-1259.7,0.00013325,6]
[323183881,1713787842805,-250.0,0.00012533,2]
[323183882,1713787842814,-405.39,0.00013325,6]
[323183887,1713787843275,-2641.11265917,0.00013325,6]
[323183892,1713787845787,-419.06,0.00013178,2]
[323183893,1713787845797,-2885.10008992,0.00013325,6]
[323183894,1713787845808,-1254.90632,0.00013325,6]
[323183895,1713787845907,-81920.90083794,0.00013325,6]
[323183896,1713787846006,-19721.95670529,0.00013325,6]
[323183897,1713787846015,-3674.59577969,0.00013378,2]
[323183904,1713787966949,545.48295772,0.00010702,2]
[323183905,1713788032203,408.48862747,0.00010702,2]
[323183907,1713788048213,408.87380137,0.00010702,2]
[323183908,1713788125571,966.52,0.00010553,2]
[323183909,1713788227288,150.0,0.00011191,2]
[323183910,1713788227308,150.0,0.00011191,2]
[323183911,1713788227330,150.0,0.00011191,2]
[323183912,1713788227352,150.0,0.00011191,2]
[323183913,1713788227373,150.0,0.00011191,2]
[323183914,1713788227394,150.0,0.00011191,2]
[323183915,1713788227414,150.0,0.00011191,2]
[323183916,1713788227435,150.0,0.00011191,2]
[323183917,1713788227455,150.0,0.00011191,2]
[323183918,1713788227476,150.0,0.00011191,2]
[323183919,1713788227496,248.60538775,0.00011191,2]
[323183920,1713788227517,2563.97740966,0.00011191,2]
[323183921,1713788245186,1298.60538775,0.00010553,2]
[323183922,1713788247417,300.0,0.00010553,2]
[323183923,1713788316508,395.651771,0.00011176,2]
[323183924,1713788458625,157.3596534,0.00011129,2]
[323183925,1713788511095,3019.0781,0.00011191,2]
[323183926,1713788671918,935.67,9.944e-05,2]
[323183927,1713788791099,236.51827636,0.000112,2]
[323183928,1713788806709,155.0,0.000112,2]
[323183929,1713788815793,207.74230146,0.000112,2]
[323183930,1713788820021,1983.65044049,0.000112,2]
[323183931,1713788820153,313.74231263,0.000112,2]
[323183932,1713788825094,150.0,0.000112,2]
[323183933,1713788836687,157.23443646,0.000112,2]
[323183934,1713788844164,200.0,0.00013,4]
[323183935,1713788849630,206.16047794,0.00011,2]
[323183936,1713788937199,206.16047794,0.00011,2]
[323183937,1713788978401,1231.6318,0.00011128,2]
[323183938,1713789006604,1070.8403,0.00011107,2]
[323183956,1713789032286,-203.9438348,0.00011204,2]
[323183957,1713789032296,-155.0,0.00011204,2]
[323183958,1713789032305,-690.63457715,0.00011205,2]
[323183959,1713789032314,-434.47158805,0.00011207,2]
[323183960,1713789032326,-659.0748252,0.00011207,2]
[323183961,1713789032338,-366.45358675,0.00011207,2]
[323183962,1713789032347,-150.0,0.00011227,2]
[323183963,1713789032356,-5724.86660781,0.00011228,2]
[323183965,1713789032561,-14189.22619668,0.00011228,2]
[323183966,1713789032573,-3289.15,0.00011228,2]
[323183967,1713789032584,-320.57359646,0.00011228,2]
[323183970,1713789038210,-692.51,0.00011228,2]
[323183971,1713789038222,-1122.94407473,0.00011228,2]
[323183972,1713789038234,-2581.35390404,0.00011228,2]
[323183973,1713789038246,-250.0,0.00011849,2]
[323183974,1713789038256,-360.0,0.00011921,2]
[323183975,1713789038265,-195.32,0.00011938,2]
[323183977,1713789038275,-558.14,0.00011968,2]
[323183979,1713789038284,-315.53564774,0.00012136,2]
[323183989,1713789039942,-387.92665434,0.00012136,2]
[323183990,1713789039993,-818.30733237,0.00012136,2]
[323183991,1713789040109,-22378.23036555,0.00012136,2]
[323183992,1713789040119,-3103.41,0.00012151,2]
[323183993,1713789040129,-4081.63,0.00012186,2]
[323183994,1713789040138,-935.67,0.00012208,2]
[323183995,1713789040149,-282.27,0.00012208,2]
[323183996,1713789040158,-8048.22,0.00012208,2]
[323183997,1713789040168,-2526.12,0.00012208,2]
[323183998,1713789040177,-150.99,0.00012208,2]
[323183999,1713789040186,-220.64,0.00012208,2]
[323184000,1713789040196,-29053.85235446,0.00012294,2]
[323184001,1713789040254,-409.45999997,0.00012294,2]
[323184002,1713789040305,-28639.43626917,0.00012294,2]
[323184003,1713789040315,-164.24,0.00012389,2]
[323184004,1713789040324,-195.32,0.0001256,2]
[323184005,1713789040333,-419.06,0.00012578,2]
[323184006,1713789040343,-419.06,0.00012578,2]
[323184007,1713789040352,-640.0,0.00012634,2]
[323184008,1713789040362,-499.99,0.00012634,2]
[323184009,1713789040371,-304.0,0.00012676,2]
[323184010,1713789040381,-419.06,0.00012678,2]
[323184011,1713789040390,-419.06,0.00012678,2]
[323184012,1713789040399,-419.06,0.00012678,2]
[323184013,1713789040410,-419.06,0.00012678,2]
[323184014,1713789040420,-2500.0,0.000127,2]
[323184015,1713789040431,-16013.69956998,0.000128,2]
[323184016,1713789040444,-5196.0,0.000128,2]
[323184017,1713789040456,-6419.81432832,0.000128,2]
[323184018,1713789040512,-24273.96204214,0.000128,2]
[323184019,1713789040534,-31631.61835956,0.000128,2]
[323184020,1713789040544,-419.06,0.00012878,2]
[323184021,1713789040554,-419.06,0.00012878,2]
[323184022,1713789040565,-750.0,0.00013,2]
[323184023,1713789040575,-541.0,0.00013083,2]
[323184024,1713789040586,-1107.076,0.00013083,2]
[323184025,1713789040595,-1640.0,0.00013083,2]
[323184026,1713789040605,-500.0,0.000131,4]
[323184027,1713789040615,-419.06,0.00013178,2]
[323184028,1713789040625,-419.06,0.00013178,2]
[323184029,1713789040635,-693.83,0.00013178,2]
[323184030,1713789040644,-800.0,0.000132,4]
[323184031,1713789040653,-10000.0,0.00013255,2]
[323184032,1713789040663,-10000.0,0.00013266,2]
[323184033,1713789040673,-555.55556,0.0001327,2]
[323184034,1713789040683,-1000.0,0.00013271,2]
[323184035,1713789040694,-500.0,0.00013271,2]
[323184036,1713789040704,-3100.86,0.00013296,2]
[323184037,1713789040714,-1100.0,0.000133,4]
[323184038,1713789040725,-555.55556,0.0001331,2]
[323184039,1713789040735,-555.55556,0.0001335,2]
[323184040,1713789040749,-10000.0,0.00013378,2]